[Event "Titled Tuesday Blitz May 2 Early 2023"]
[White "Andrews, Todd"]
[Black "Ramadoss, Ashokkumar"]
[WhiteFideId "2012456"]
[BlackFideId "5040990"]
[WhiteElo "2217"]
[BlackElo "2110"]
[Result "1-0"]
[Round "07"]
[TimeControl "180+2"]
[Date "2023.05.03"]
[WhiteClock "0:00:00"]
[BlackClock "0:00:00"]

1. e4 {[%clk 0:00:01]}  e6 {[%clk 0:00:01]} 2. d4 {[%clk 0:00:01]}  d5 {[%clk 0:00:01]} 3. Nc3 {[%clk 0:00:01]}  Bb4 {[%clk 0:00:01]} 4. e5 {[%clk 0:00:01]}  c5 {[%clk 0:00:01]} 5. Bd2 {[%clk 0:00:01]}  cxd4 {[%clk 0:00:01]} 6. Nb5 {[%clk 0:00:01]}  Bf8 {[%clk 0:00:01]} 7. f4 {[%clk 0:00:01]}  Nc6 {[%clk 0:00:01]} 8. Nf3 {[%clk 0:00:01]}  a6 {[%clk 0:00:01]} 9. Nbxd4 {[%clk 0:00:01]}  Nge7 {[%clk 0:00:01]} 10. Bd3 {[%clk 0:00:01]}  Nxd4 {[%clk 0:00:01]} 11. Nxd4 {[%clk 0:00:01]}  Nc6 {[%clk 0:00:01]} 12. Nf3 {[%clk 0:00:01]}  Bc5 {[%clk 0:00:01]} 13. Qe2 {[%clk 0:00:01]}  Bd7 {[%clk 0:00:01]} 14. O-O-O {[%clk 0:00:01]}  Qc7 {[%clk 0:00:01]} 15. Kb1 {[%clk 0:00:01]}  h6 {[%clk 0:00:01]} 16. g4 {[%clk 0:00:01]}  O-O-O {[%clk 0:00:01]} 17. f5 {[%clk 0:00:01]}  Kb8 {[%clk 0:00:01]} 18. h4 {[%clk 0:00:01]}  h5 {[%clk 0:00:01]} 19. fxe6 {[%clk 0:00:01]}  Bxe6 {[%clk 0:00:01]} 20. gxh5 {[%clk 0:00:01]}  Rxh5 {[%clk 0:00:01]} 21. Ng5 {[%clk 0:00:01]}  Rdh8 {[%clk 0:00:01]} 22. Nxe6 {[%clk 0:00:01]}  fxe6 {[%clk 0:00:01]} 23. Qg4 {[%clk 0:00:01]}  Qd7 {[%clk 0:00:01]} 24. Bf4 {[%clk 0:00:01]}  Ka8 {[%clk 0:00:01]} 25. Bg6 {[%clk 0:00:01]}  Nxe5 {[%clk 0:00:01]} 26. Bxe5 {[%clk 0:00:00]}  Rxe5 {[%clk 0:00:01]} 27. h5 {[%clk 0:00:00]}  Qb5 {[%clk 0:00:00]} 28. Rhe1 {[%clk 0:00:00]}  Ba3 {[%clk 0:00:00]} 29. b3 {[%clk 0:00:00]}  Rxe1 {[%clk 0:00:00]} 30. Rxe1 {[%clk 0:00:00]}  Qc5 {[%clk 0:00:00]} 31. Qf3 {[%clk 0:00:00]}  Bb4 {[%clk 0:00:00]} 32. Rxe6 {[%clk 0:00:00]}  Bc3 {[%clk 0:00:00]} 33. Qe3 {[%clk 0:00:00]}  Bd4 {[%clk 0:00:00]} 34. Re8+ {[%clk 0:00:00]}  Rxe8 {[%clk 0:00:00]} 35. Qxe8+ {[%clk 0:00:00]}  Ka7 {[%clk 0:00:00]} 36. Qe1 {[%clk 0:00:00]}  Bc3 {[%clk 0:00:00]} 37. Qd1 {[%clk 0:00:00]}  d4 {[%clk 0:00:00]} 38. Qf1 {[%clk 0:00:00]}  Qg5 {[%clk 0:00:00]} 39. Qd1 {[%clk 0:00:00]}  Qc5 {[%clk 0:00:00]} 40. Qf1 {[%clk 0:00:00]}  Qa3 {[%clk 0:00:00]} 41. Qc1 {[%clk 0:00:00]}  Qc5 {[%clk 0:00:00]} 42. a3 {[%clk 0:00:00]}  a5 {[%clk 0:00:00]} 43. Ka2 {[%clk 0:00:00]}  a4 {[%clk 0:00:00]} 44. Qb1 {[%clk 0:00:00]}  Qd5 {[%clk 0:00:00]} 45. Qd1 {[%clk 0:00:00]}  b5 {[%clk 0:00:00]} 46. Qd3 {[%clk 0:00:00]}  b4 {[%clk 0:00:00]} 47. axb4 {[%clk 0:00:00]}  axb3+ {[%clk 0:00:00]} 48. cxb3 {[%clk 0:00:00]}  Qg2+ {[%clk 0:00:00]} 49. Qc2 {[%clk 0:00:00]}  Qxc2+ {[%clk 0:00:00]} 50. Bxc2 {[%clk 0:00:00]}  Bxb4 {[%clk 0:00:00]} 51. Bd3 {[%clk 0:00:00]}  Kb6 {[%clk 0:00:00]} 52. Kb2 {[%clk 0:00:00]}  Kc5 {[%clk 0:00:00]} 53. Kc2 {[%clk 0:00:00]}  Bc3 {[%clk 0:00:00]} 54. Bg6 {[%clk 0:00:00]}  Kd6 {[%clk 0:00:00]} 55. Kd3 {[%clk 0:00:00]}  Ke5 {[%clk 0:00:00]} 56. Kc4 {[%clk 0:00:00]}  Kf6 {[%clk 0:00:00]} 57. b4 {[%clk 0:00:00]}  Ke5 {[%clk 0:00:00]} 58. b5 {[%clk 0:00:00]}  Be1 {[%clk 0:00:00]} 59. Kc5 {[%clk 0:00:00]}  d3 {[%clk 0:00:00]} 60. Bxd3 {[%clk 0:00:00]}  Bf2+ {[%clk 0:00:00]} 61. Kc6 {[%clk 0:00:00]}  Kf6 {[%clk 0:00:00]} 62. Bg6 {[%clk 0:00:00]}  Ke7 {[%clk 0:00:00]} 63. b6 {[%clk 0:00:00]}  Bxb6 {[%clk 0:00:00]} 64. Kxb6 {[%clk 0:00:00]}  Kf6 {[%clk 0:00:00]} 65. Kc7 {[%clk 0:00:00]}  Kg5 {[%clk 0:00:00]} 66. Kd7 {[%clk 0:00:00]}  Kh6 {[%clk 0:00:00]} 67. Ke7 {[%clk 0:00:00]}  Kg5 {[%clk 0:00:00]} 68. Kf7 {[%clk 0:00:00]}  Kh6 {[%clk 0:00:00]} 69. Kg8 {[%clk 0:00:00]}  Kg5 {[%clk 0:00:00]} 70. Kxg7 {[%clk 0:00:00]}  Kh4 {[%clk 0:00:00]} 71. h6 {[%clk 0:00:00]} 1-0


[Site "https://www.chess.com"]

[Event "Titled Tuesday Blitz May 2 Early 2023"]
[White "Wimalasuriya, Kasun M."]
[Black "Myers, Dominique"]
[WhiteFideId "9906789"]
[BlackFideId "2041715"]
[WhiteElo "1781"]
[BlackElo "1934"]
[Result "0-1"]
[Round "07"]
[TimeControl "180+2"]
[Date "2023.05.03"]
[WhiteClock "0:00:01"]
[BlackClock "0:00:01"]

1. d4 {[%clk 0:00:01]}  Nf6 {[%clk 0:00:01]} 2. c4 {[%clk 0:00:01]}  c5 {[%clk 0:00:01]} 3. d5 {[%clk 0:00:01]}  b5 {[%clk 0:00:01]} 4. cxb5 {[%clk 0:00:01]}  a6 {[%clk 0:00:01]} 5. b6 {[%clk 0:00:01]}  Bb7 {[%clk 0:00:01]} 6. Nc3 {[%clk 0:00:01]}  e6 {[%clk 0:00:01]} 7. e4 {[%clk 0:00:01]}  exd5 {[%clk 0:00:01]} 8. exd5 {[%clk 0:00:01]}  d6 {[%clk 0:00:01]} 9. Bg5 {[%clk 0:00:01]}  Be7 {[%clk 0:00:01]} 10. Nf3 {[%clk 0:00:01]}  O-O {[%clk 0:00:01]} 11. Bxf6 {[%clk 0:00:01]}  Bxf6 {[%clk 0:00:01]} 12. Nd2 {[%clk 0:00:01]}  Nd7 {[%clk 0:00:01]} 13. Be2 {[%clk 0:00:01]}  Nxb6 {[%clk 0:00:01]} 14. Nde4 {[%clk 0:00:01]}  Re8 {[%clk 0:00:01]} 15. O-O {[%clk 0:00:01]}  Bd4 {[%clk 0:00:01]} 16. Bf3 {[%clk 0:00:01]}  Nxd5 {[%clk 0:00:01]} 17. Qb3 {[%clk 0:00:01]}  Nb6 {[%clk 0:00:01]} 18. Rad1 {[%clk 0:00:01]}  Rb8 {[%clk 0:00:01]} 19. Ne2 {[%clk 0:00:01]}  Bd5 {[%clk 0:00:01]} 20. Qd3 {[%clk 0:00:01]}  Bc4 {[%clk 0:00:01]} 21. Qd2 {[%clk 0:00:01]}  Bxe2 {[%clk 0:00:01]} 22. Qxe2 {[%clk 0:00:01]}  d5 {[%clk 0:00:01]} 0-1


[Site "https://www.chess.com"]

[Event "Titled Tuesday Blitz May 2 Early 2023"]
[White "Cueto, Jonny"]
[Black "Fernandez Siles, Luis"]
[WhiteFideId "3300145"]
[BlackFideId "2209420"]
[WhiteElo "2234"]
[BlackElo "2195"]
[Result "1-0"]
[Round "07"]
[TimeControl "180+2"]
[Date "2023.05.03"]
[WhiteClock "0:00:00"]
[BlackClock "0:00:00"]

1. d4 {[%clk 0:00:01]}  Nf6 {[%clk 0:00:01]} 2. Bf4 {[%clk 0:00:01]}  d6 {[%clk 0:00:01]} 3. Nc3 {[%clk 0:00:01]}  Nbd7 {[%clk 0:00:01]} 4. Nf3 {[%clk 0:00:01]}  Nh5 {[%clk 0:00:01]} 5. Bg5 {[%clk 0:00:01]}  h6 {[%clk 0:00:01]} 6. Bh4 {[%clk 0:00:01]}  g5 {[%clk 0:00:01]} 7. Bg3 {[%clk 0:00:01]}  Bg7 {[%clk 0:00:01]} 8. e3 {[%clk 0:00:01]}  e6 {[%clk 0:00:01]} 9. Be2 {[%clk 0:00:01]}  Qe7 {[%clk 0:00:01]} 10. Qd2 {[%clk 0:00:01]}  b6 {[%clk 0:00:01]} 11. O-O-O {[%clk 0:00:01]}  Bb7 {[%clk 0:00:01]} 12. Kb1 {[%clk 0:00:00]}  O-O-O {[%clk 0:00:01]} 13. Nb5 {[%clk 0:00:00]}  Kb8 {[%clk 0:00:01]} 14. Qc3 {[%clk 0:00:00]}  Ndf6 {[%clk 0:00:01]} 15. Qa3 {[%clk 0:00:00]}  a6 {[%clk 0:00:01]} 16. Nc3 {[%clk 0:00:00]}  Nxg3 {[%clk 0:00:01]} 17. hxg3 {[%clk 0:00:00]}  a5 {[%clk 0:00:00]} 18. Nd2 {[%clk 0:00:00]}  Bxg2 {[%clk 0:00:00]} 19. Rhg1 {[%clk 0:00:00]}  Bb7 {[%clk 0:00:00]} 20. Ka1 {[%clk 0:00:00]}  Nd5 {[%clk 0:00:00]} 21. Nb5 {[%clk 0:00:00]}  c6 {[%clk 0:00:00]} 22. Nc3 {[%clk 0:00:00]}  Nb4 {[%clk 0:00:00]} 23. Rc1 {[%clk 0:00:00]}  d5 {[%clk 0:00:00]} 24. Na4 {[%clk 0:00:00]}  Kc7 {[%clk 0:00:00]} 25. c3 {[%clk 0:00:00]}  b5 {[%clk 0:00:00]} 26. Nc5 {[%clk 0:00:00]}  Bf8 {[%clk 0:00:00]} 27. Qxa5+ {[%clk 0:00:00]}  Kc8 {[%clk 0:00:00]} 28. cxb4 {[%clk 0:00:00]}  Qc7 {[%clk 0:00:00]} 29. Qxc7+ {[%clk 0:00:00]}  Kxc7 {[%clk 0:00:00]} 30. Nxb7 {[%clk 0:00:00]}  Kxb7 {[%clk 0:00:00]} 31. a3 {[%clk 0:00:00]}  f5 {[%clk 0:00:00]} 32. Kb1 {[%clk 0:00:00]}  Bg7 {[%clk 0:00:00]} 33. Nb3 {[%clk 0:00:00]}  Kc7 {[%clk 0:00:00]} 34. Nc5 {[%clk 0:00:00]}  Rhe8 {[%clk 0:00:00]} 35. Na6+ {[%clk 0:00:00]}  Kd6 {[%clk 0:00:00]} 36. Nc5 {[%clk 0:00:00]}  e5 {[%clk 0:00:00]} 37. Nb7+ {[%clk 0:00:00]}  Kc7 {[%clk 0:00:00]} 38. Nxd8 {[%clk 0:00:00]}  Kxd8 {[%clk 0:00:00]} 39. Rxc6 {[%clk 0:00:00]}  exd4 {[%clk 0:00:00]} 40. Bxb5 {[%clk 0:00:00]}  dxe3 {[%clk 0:00:00]} 41. Rd6+ {[%clk 0:00:00]}  Kc7 {[%clk 0:00:00]} 42. Bxe8 {[%clk 0:00:00]}  Kxd6 {[%clk 0:00:00]} 43. fxe3 {[%clk 0:00:00]}  Be5 {[%clk 0:00:00]} 44. Ba4 {[%clk 0:00:00]}  h5 {[%clk 0:00:00]} 45. Bc2 {[%clk 0:00:00]}  Ke6 {[%clk 0:00:00]} 46. b5 {[%clk 0:00:00]}  h4 {[%clk 0:00:00]} 47. gxh4 {[%clk 0:00:00]}  gxh4 {[%clk 0:00:00]} 48. a4 {[%clk 0:00:00]}  h3 {[%clk 0:00:00]} 49. a5 {[%clk 0:00:00]}  h2 {[%clk 0:00:00]} 50. Rh1 {[%clk 0:00:00]}  Kf6 {[%clk 0:00:00]} 51. b6 {[%clk 0:00:00]}  d4 {[%clk 0:00:00]} 52. exd4 {[%clk 0:00:00]} 1-0


[Site "https://www.chess.com"]

[Event "Titled Tuesday Blitz May 2 Early 2023"]
[White "James, Stuart"]
[Black "Vaglio Munoz, Jaime"]
[WhiteFideId "7400489"]
[BlackFideId "6500145"]
[WhiteElo "1950"]
[BlackElo "2199"]
[Result "0-1"]
[Round "07"]
[TimeControl "180+2"]
[Date "2023.05.03"]
[WhiteClock "0:00:00"]
[BlackClock "0:00:00"]

1. e4 {[%clk 0:00:01]}  e6 {[%clk 0:00:01]} 2. d4 {[%clk 0:00:01]}  d5 {[%clk 0:00:01]} 3. Nd2 {[%clk 0:00:01]}  dxe4 {[%clk 0:00:01]} 4. Nxe4 {[%clk 0:00:01]}  Nf6 {[%clk 0:00:01]} 5. Bg5 {[%clk 0:00:01]}  Be7 {[%clk 0:00:01]} 6. Bxf6 {[%clk 0:00:01]}  gxf6 {[%clk 0:00:01]} 7. g3 {[%clk 0:00:01]}  Bd7 {[%clk 0:00:01]} 8. Bg2 {[%clk 0:00:01]}  Bc6 {[%clk 0:00:01]} 9. f3 {[%clk 0:00:01]}  f5 {[%clk 0:00:01]} 10. Nc3 {[%clk 0:00:01]}  Bf6 {[%clk 0:00:01]} 11. Nge2 {[%clk 0:00:01]}  h5 {[%clk 0:00:01]} 12. d5 {[%clk 0:00:01]}  exd5 {[%clk 0:00:01]} 13. Nd4 {[%clk 0:00:01]}  Qe7+ {[%clk 0:00:01]} 14. Kf2 {[%clk 0:00:01]}  Qc5 {[%clk 0:00:01]} 15. Ne2 {[%clk 0:00:01]}  Bb5 {[%clk 0:00:01]} 16. c3 {[%clk 0:00:01]}  Nc6 {[%clk 0:00:01]} 17. Re1 {[%clk 0:00:01]}  Kf8 {[%clk 0:00:01]} 18. b4 {[%clk 0:00:01]}  Bxe2 {[%clk 0:00:01]} 19. bxc5 {[%clk 0:00:00]}  Bxd1 {[%clk 0:00:01]} 20. Raxd1 {[%clk 0:00:00]}  Nxd4 {[%clk 0:00:01]} 21. cxd4 {[%clk 0:00:00]}  f4 {[%clk 0:00:01]} 22. Ke2 {[%clk 0:00:00]}  a5 {[%clk 0:00:01]} 23. Kd3 {[%clk 0:00:00]}  a4 {[%clk 0:00:01]} 24. Rb1 {[%clk 0:00:00]}  Ra7 {[%clk 0:00:01]} 25. gxf4 {[%clk 0:00:00]}  a3 {[%clk 0:00:01]} 26. Rb4 {[%clk 0:00:00]}  Kg7 {[%clk 0:00:01]} 27. Reb1 {[%clk 0:00:00]}  Rb8 {[%clk 0:00:01]} 28. c6 {[%clk 0:00:00]}  b6 {[%clk 0:00:01]} 29. f5 {[%clk 0:00:00]}  Bg5 {[%clk 0:00:01]} 30. f4 {[%clk 0:00:00]}  Bxf4 {[%clk 0:00:01]} 31. Bxd5 {[%clk 0:00:00]}  Bxh2 {[%clk 0:00:01]} 32. Rh1 {[%clk 0:00:00]}  Bd6 {[%clk 0:00:00]} 33. Rxh5 {[%clk 0:00:00]}  Bxb4 {[%clk 0:00:00]} 0-1


[Site "https://www.chess.com"]

[Event "Titled Tuesday Blitz May 2 Early 2023"]
[White "Smith, Shreyas"]
[Black "Matveeva, Olga"]
[WhiteFideId "7400713"]
[BlackFideId "24107018"]
[WhiteElo "2151"]
[BlackElo "2056"]
[Result "1-0"]
[Round "07"]
[TimeControl "180+2"]
[Date "2023.05.03"]
[WhiteClock "0:00:00"]
[BlackClock "0:00:00"]

1. e4 {[%clk 0:00:01]}  e6 {[%clk 0:00:01]} 2. d4 {[%clk 0:00:01]}  d5 {[%clk 0:00:01]} 3. e5 {[%clk 0:00:01]}  c5 {[%clk 0:00:01]} 4. c3 {[%clk 0:00:01]}  Nc6 {[%clk 0:00:01]} 5. Nf3 {[%clk 0:00:01]}  Qb6 {[%clk 0:00:01]} 6. Bd3 {[%clk 0:00:01]}  Bd7 {[%clk 0:00:01]} 7. O-O {[%clk 0:00:01]}  cxd4 {[%clk 0:00:01]} 8. cxd4 {[%clk 0:00:01]}  Nxd4 {[%clk 0:00:01]} 9. Nbd2 {[%clk 0:00:01]}  Ne7 {[%clk 0:00:01]} 10. Nxd4 {[%clk 0:00:01]}  Qxd4 {[%clk 0:00:01]} 11. Nf3 {[%clk 0:00:01]}  Qb6 {[%clk 0:00:01]} 12. Be3 {[%clk 0:00:01]}  Qd8 {[%clk 0:00:01]} 13. Bc5 {[%clk 0:00:01]}  Nc6 {[%clk 0:00:01]} 14. Bxf8 {[%clk 0:00:01]}  Kxf8 {[%clk 0:00:01]} 15. Qd2 {[%clk 0:00:01]}  Kg8 {[%clk 0:00:01]} 16. h4 {[%clk 0:00:01]}  h5 {[%clk 0:00:01]} 17. Qf4 {[%clk 0:00:01]}  Qe7 {[%clk 0:00:01]} 18. a3 {[%clk 0:00:01]}  Rf8 {[%clk 0:00:01]} 19. Rfe1 {[%clk 0:00:01]}  f6 {[%clk 0:00:01]} 20. Qg3 {[%clk 0:00:00]}  f5 {[%clk 0:00:01]} 21. Ng5 {[%clk 0:00:00]}  g6 {[%clk 0:00:01]} 22. Rac1 {[%clk 0:00:00]}  Kg7 {[%clk 0:00:01]} 23. f4 {[%clk 0:00:00]}  Rc8 {[%clk 0:00:01]} 24. Be2 {[%clk 0:00:00]}  Nd4 {[%clk 0:00:01]} 25. Rxc8 {[%clk 0:00:00]}  Nxe2+ {[%clk 0:00:01]} 26. Rxe2 {[%clk 0:00:00]}  Rxc8 {[%clk 0:00:01]} 27. Kh2 {[%clk 0:00:00]}  Qc5 {[%clk 0:00:00]} 28. Re3 {[%clk 0:00:00]}  Qc2 {[%clk 0:00:00]} 29. Rb3 {[%clk 0:00:00]}  b6 {[%clk 0:00:00]} 30. Rb4 {[%clk 0:00:00]}  Qd2 {[%clk 0:00:00]} 31. Nf3 {[%clk 0:00:00]}  Qd1 {[%clk 0:00:00]} 32. Qg5 {[%clk 0:00:00]}  Re8 {[%clk 0:00:00]} 33. Qf6+ {[%clk 0:00:00]}  Kh6 {[%clk 0:00:00]} 34. Qf7 {[%clk 0:00:00]}  Bc6 {[%clk 0:00:00]} 35. Ng5 {[%clk 0:00:00]}  Rh8 {[%clk 0:00:00]} 36. Qf6 {[%clk 0:00:00]}  Rc8 {[%clk 0:00:00]} 37. Nxe6 {[%clk 0:00:00]}  Rg8 {[%clk 0:00:00]} 38. Qf7 {[%clk 0:00:00]}  d4 {[%clk 0:00:00]} 39. Qxg8 {[%clk 0:00:00]} 1-0


[Site "https://www.chess.com"]

[Event "Titled Tuesday Blitz May 2 Early 2023"]
[White "Cramling Bellon, Anna"]
[Black "Omariev, Maksim"]
[WhiteFideId "32009232"]
[BlackFideId "4193423"]
[WhiteElo "1972"]
[BlackElo "2304"]
[Result "1-0"]
[Round "07"]
[TimeControl "180+2"]
[Date "2023.05.03"]
[WhiteClock "0:00:00"]
[BlackClock "0:00:00"]

1. d4 {[%clk 0:00:01]}  h5 {[%clk 0:00:00]} 2. c4 {[%clk 0:00:01]}  h4 {[%clk 0:00:00]} 3. h3 {[%clk 0:00:01]}  d6 {[%clk 0:00:00]} 4. e4 {[%clk 0:00:01]}  e5 {[%clk 0:00:00]} 5. d5 {[%clk 0:00:01]}  a5 {[%clk 0:00:00]} 6. Nf3 {[%clk 0:00:01]}  Na6 {[%clk 0:00:00]} 7. Nc3 {[%clk 0:00:01]}  Nc5 {[%clk 0:00:00]} 8. Be3 {[%clk 0:00:01]}  b6 {[%clk 0:00:00]} 9. Be2 {[%clk 0:00:01]}  Be7 {[%clk 0:00:00]} 10. Qc2 {[%clk 0:00:01]}  Nf6 {[%clk 0:00:00]} 11. a3 {[%clk 0:00:01]}  Bd7 {[%clk 0:00:00]} 12. O-O {[%clk 0:00:01]}  a4 {[%clk 0:00:00]} 13. Nd2 {[%clk 0:00:01]}  Nh5 {[%clk 0:00:00]} 14. Bxh5 {[%clk 0:00:01]}  Rxh5 {[%clk 0:00:00]} 15. f4 {[%clk 0:00:01]}  exf4 {[%clk 0:00:00]} 16. Bxf4 {[%clk 0:00:01]}  Bg5 {[%clk 0:00:00]} 17. Qd1 {[%clk 0:00:01]}  Rh6 {[%clk 0:00:00]} 18. Bxg5 {[%clk 0:00:00]}  Qxg5 {[%clk 0:00:00]} 19. Nf3 {[%clk 0:00:00]}  Qg3 {[%clk 0:00:00]} 20. Qe1 {[%clk 0:00:00]}  Rg6 {[%clk 0:00:00]} 21. Nxh4 {[%clk 0:00:00]}  Qxe1 {[%clk 0:00:00]} 22. Raxe1 {[%clk 0:00:00]}  Rg3 {[%clk 0:00:00]} 23. Nf5 {[%clk 0:00:00]}  Bxf5 {[%clk 0:00:00]} 24. exf5+ {[%clk 0:00:00]}  Kd7 {[%clk 0:00:00]} 25. f6 {[%clk 0:00:00]}  g6 {[%clk 0:00:00]} 26. Re7+ {[%clk 0:00:00]}  Kc8 {[%clk 0:00:00]} 27. Nb5 {[%clk 0:00:00]}  Na6 {[%clk 0:00:00]} 28. Rxf7 {[%clk 0:00:00]}  Rb3 {[%clk 0:00:00]} 29. Re1 {[%clk 0:00:00]}  Kb7 {[%clk 0:00:00]} 30. Nxd6+ {[%clk 0:00:00]}  Ka7 {[%clk 0:00:00]} 31. Nb5+ {[%clk 0:00:00]}  Kb7 {[%clk 0:00:00]} 32. Ree7 {[%clk 0:00:00]}  Rh8 {[%clk 0:00:00]} 33. Nxc7 {[%clk 0:00:00]}  Nxc7 {[%clk 0:00:00]} 34. Rxc7+ {[%clk 0:00:00]}  Ka8 {[%clk 0:00:00]} 35. Ra7+ {[%clk 0:00:00]}  Kb8 {[%clk 0:00:00]} 36. Rfb7+ {[%clk 0:00:00]}  Kc8 {[%clk 0:00:00]} 37. Ra8+ {[%clk 0:00:00]}  Kxb7 {[%clk 0:00:00]} 38. Rxh8 {[%clk 0:00:00]}  Rxb2 {[%clk 0:00:00]} 39. f7 {[%clk 0:00:00]}  Rb1+ {[%clk 0:00:00]} 40. Kf2 {[%clk 0:00:00]}  Rb2+ {[%clk 0:00:00]} 41. Kg3 {[%clk 0:00:00]}  Rb3+ {[%clk 0:00:00]} 42. Kg4 {[%clk 0:00:00]}  Rxa3 {[%clk 0:00:00]} 43. f8=Q {[%clk 0:00:00]}  b5 {[%clk 0:00:00]} 44. Qc8+ {[%clk 0:00:00]}  Kb6 {[%clk 0:00:00]} 45. Qc6+ {[%clk 0:00:00]}  Ka5 {[%clk 0:00:00]} 46. Qxb5# {[%clk 0:00:00]} 1-0


[Site "https://www.chess.com"]

[Event "Titled Tuesday Blitz May 2 Early 2023"]
[White "Sailer, Mike"]
[Black "Novikova, Galina"]
[WhiteFideId "2012901"]
[BlackFideId "4157095"]
[WhiteElo "2109"]
[BlackElo "1953"]
[Result "0-1"]
[Round "07"]
[TimeControl "180+2"]
[Date "2023.05.03"]
[WhiteClock "0:00:00"]
[BlackClock "0:00:00"]

1. d4 {[%clk 0:00:01]}  Nf6 {[%clk 0:00:01]} 2. Bg5 {[%clk 0:00:01]}  Ne4 {[%clk 0:00:01]} 3. Bf4 {[%clk 0:00:01]}  d5 {[%clk 0:00:01]} 4. f3 {[%clk 0:00:01]}  Nf6 {[%clk 0:00:01]} 5. Nc3 {[%clk 0:00:01]}  e6 {[%clk 0:00:01]} 6. e4 {[%clk 0:00:01]}  Bb4 {[%clk 0:00:01]} 7. e5 {[%clk 0:00:01]}  Nfd7 {[%clk 0:00:01]} 8. Bd3 {[%clk 0:00:01]}  c5 {[%clk 0:00:01]} 9. a3 {[%clk 0:00:01]}  Ba5 {[%clk 0:00:01]} 10. dxc5 {[%clk 0:00:01]}  Bxc3+ {[%clk 0:00:01]} 11. bxc3 {[%clk 0:00:01]}  Nxc5 {[%clk 0:00:01]} 12. Ne2 {[%clk 0:00:01]}  Nc6 {[%clk 0:00:01]} 13. O-O {[%clk 0:00:01]}  h6 {[%clk 0:00:01]} 14. Nd4 {[%clk 0:00:01]}  Nxd4 {[%clk 0:00:01]} 15. cxd4 {[%clk 0:00:01]}  Nxd3 {[%clk 0:00:01]} 16. Qxd3 {[%clk 0:00:01]}  O-O {[%clk 0:00:01]} 17. Rab1 {[%clk 0:00:01]}  a6 {[%clk 0:00:01]} 18. Bd2 {[%clk 0:00:01]}  Bd7 {[%clk 0:00:00]} 19. Rf2 {[%clk 0:00:00]}  Bb5 {[%clk 0:00:00]} 20. Qe3 {[%clk 0:00:00]}  Rc8 {[%clk 0:00:00]} 21. Bb4 {[%clk 0:00:00]}  Re8 {[%clk 0:00:00]} 22. f4 {[%clk 0:00:00]}  Ba4 {[%clk 0:00:00]} 23. c3 {[%clk 0:00:00]}  Qh4 {[%clk 0:00:00]} 24. f5 {[%clk 0:00:00]}  exf5 {[%clk 0:00:00]} 25. Rxf5 {[%clk 0:00:00]}  Bc2 {[%clk 0:00:00]} 26. Rf4 {[%clk 0:00:00]}  Qxf4 {[%clk 0:00:00]} 27. Qxf4 {[%clk 0:00:00]}  Bxb1 {[%clk 0:00:00]} 28. g4 {[%clk 0:00:00]}  Be4 {[%clk 0:00:00]} 29. h4 {[%clk 0:00:00]}  Re6 {[%clk 0:00:00]} 30. Kf2 {[%clk 0:00:00]}  b6 {[%clk 0:00:00]} 31. Qe3 {[%clk 0:00:00]}  a5 {[%clk 0:00:00]} 32. Bd6 {[%clk 0:00:00]}  Ree8 {[%clk 0:00:00]} 33. Ke2 {[%clk 0:00:00]}  Rc6 {[%clk 0:00:00]} 34. Kd2 {[%clk 0:00:00]}  Bg6 {[%clk 0:00:00]} 35. h5 {[%clk 0:00:00]}  Be4 {[%clk 0:00:00]} 36. g5 {[%clk 0:00:00]}  hxg5 {[%clk 0:00:00]} 37. Qxg5 {[%clk 0:00:00]}  Kh7 {[%clk 0:00:00]} 38. h6 {[%clk 0:00:00]}  gxh6 {[%clk 0:00:00]} 39. Qf6 {[%clk 0:00:00]}  Bg6 {[%clk 0:00:00]} 40. Qf4 {[%clk 0:00:00]}  Rec8 {[%clk 0:00:00]} 0-1


[Site "https://www.chess.com"]

[Event "Titled Tuesday Blitz May 2 Early 2023"]
[White "Kopacz, Grzegorz"]
[Black "Larina, Maria"]
[WhiteFideId "1109880"]
[BlackFideId "24113182"]
[WhiteElo "2037"]
[BlackElo "1848"]
[Result "1-0"]
[Round "07"]
[TimeControl "180+2"]
[Date "2023.05.03"]
[WhiteClock "0:00:00"]
[BlackClock "0:00:00"]

1. Nf3 {[%clk 0:00:01]}  f5 {[%clk 0:00:01]} 2. d4 {[%clk 0:00:01]}  Nf6 {[%clk 0:00:01]} 3. g3 {[%clk 0:00:01]}  g6 {[%clk 0:00:01]} 4. Bg2 {[%clk 0:00:01]}  Bg7 {[%clk 0:00:01]} 5. O-O {[%clk 0:00:01]}  O-O {[%clk 0:00:01]} 6. c4 {[%clk 0:00:01]}  d6 {[%clk 0:00:01]} 7. Nc3 {[%clk 0:00:01]}  Nc6 {[%clk 0:00:01]} 8. d5 {[%clk 0:00:01]}  Na5 {[%clk 0:00:01]} 9. Qd3 {[%clk 0:00:01]}  e5 {[%clk 0:00:01]} 10. e4 {[%clk 0:00:01]}  fxe4 {[%clk 0:00:01]} 11. Nxe4 {[%clk 0:00:01]}  Nxe4 {[%clk 0:00:01]} 12. Qxe4 {[%clk 0:00:01]}  Bf5 {[%clk 0:00:01]} 13. Qe2 {[%clk 0:00:01]}  Bg4 {[%clk 0:00:01]} 14. h3 {[%clk 0:00:01]}  Bxf3 {[%clk 0:00:01]} 15. Bxf3 {[%clk 0:00:01]}  Nxc4 {[%clk 0:00:01]} 16. Bg4 {[%clk 0:00:01]}  Nb6 {[%clk 0:00:01]} 17. a4 {[%clk 0:00:01]}  a5 {[%clk 0:00:01]} 18. Be3 {[%clk 0:00:01]}  Kh8 {[%clk 0:00:01]} 19. Be6 {[%clk 0:00:01]}  Nd7 {[%clk 0:00:01]} 20. Rac1 {[%clk 0:00:01]}  Nf6 {[%clk 0:00:00]} 21. Qb5 {[%clk 0:00:01]}  b6 {[%clk 0:00:00]} 22. Qc6 {[%clk 0:00:01]}  Ne8 {[%clk 0:00:00]} 23. h4 {[%clk 0:00:01]}  Ra7 {[%clk 0:00:00]} 24. Rc2 {[%clk 0:00:01]}  Qf6 {[%clk 0:00:00]} 25. Rfc1 {[%clk 0:00:01]}  h6 {[%clk 0:00:00]} 26. Qd7 {[%clk 0:00:01]}  Qf3 {[%clk 0:00:00]} 27. Bg4 {[%clk 0:00:01]}  Qf7 {[%clk 0:00:00]} 28. h5 {[%clk 0:00:01]}  g5 {[%clk 0:00:00]} 29. Be6 {[%clk 0:00:01]}  Qxh5 {[%clk 0:00:00]} 30. Rxc7 {[%clk 0:00:00]}  Nxc7 {[%clk 0:00:00]} 31. Rxc7 {[%clk 0:00:00]}  Rxc7 {[%clk 0:00:00]} 32. Qxc7 {[%clk 0:00:01]}  Qg6 {[%clk 0:00:00]} 33. Qxd6 {[%clk 0:00:00]}  e4 {[%clk 0:00:00]} 34. Qxb6 {[%clk 0:00:00]}  Qf6 {[%clk 0:00:00]} 35. Qxa5 {[%clk 0:00:00]}  Qf3 {[%clk 0:00:00]} 36. Qe1 {[%clk 0:00:00]}  Bxb2 {[%clk 0:00:00]} 37. a5 {[%clk 0:00:00]}  Be5 {[%clk 0:00:00]} 38. a6 {[%clk 0:00:00]}  h5 {[%clk 0:00:00]} 39. a7 {[%clk 0:00:00]}  h4 {[%clk 0:00:00]} 40. Bxg5 {[%clk 0:00:00]}  hxg3 {[%clk 0:00:00]} 41. fxg3 {[%clk 0:00:00]}  Bxg3 {[%clk 0:00:00]} 42. Qa1+ {[%clk 0:00:00]}  Kh7 {[%clk 0:00:00]} 43. Bf5+ {[%clk 0:00:00]}  Rxf5 {[%clk 0:00:00]} 44. Be3 {[%clk 0:00:00]}  Qxe3+ {[%clk 0:00:00]} 45. Kg2 {[%clk 0:00:00]}  Qf3+ {[%clk 0:00:00]} 46. Kh3 {[%clk 0:00:00]}  Qh5+ {[%clk 0:00:00]} 47. Kg2 {[%clk 0:00:00]}  Rf3 {[%clk 0:00:00]} 48. Qh8+ {[%clk 0:00:00]}  Kxh8 {[%clk 0:00:00]} 49. a8=Q+ {[%clk 0:00:00]}  Kg7 {[%clk 0:00:00]} 50. Qb7+ {[%clk 0:00:00]}  Kg6 {[%clk 0:00:00]} 51. Qc6+ {[%clk 0:00:00]}  Kf5 {[%clk 0:00:00]} 52. Qe6+ {[%clk 0:00:00]}  Kg5 {[%clk 0:00:00]} 53. Qe7+ {[%clk 0:00:00]}  Rf6 {[%clk 0:00:00]} 54. Qg7+ {[%clk 0:00:00]}  Kf5 {[%clk 0:00:00]} 55. Qd7+ {[%clk 0:00:00]}  Ke5 {[%clk 0:00:00]} 56. Qc7+ {[%clk 0:00:00]}  Kf5 {[%clk 0:00:00]} 57. Qd7+ {[%clk 0:00:00]}  Kg6 {[%clk 0:00:00]} 58. Qe8+ {[%clk 0:00:00]}  Rf7 {[%clk 0:00:00]} 59. Qe6+ {[%clk 0:00:00]}  Rf6 {[%clk 0:00:00]} 60. Qg8+ {[%clk 0:00:00]}  Kf5 {[%clk 0:00:00]} 61. Qc8+ {[%clk 0:00:00]}  Ke5 {[%clk 0:00:00]} 62. Qc7+ {[%clk 0:00:00]}  Kd4 {[%clk 0:00:00]} 63. Qa7+ {[%clk 0:00:00]} 1-0


[Site "https://www.chess.com"]